fUST/lending_fUST_20240404
["ID","MTS","AMOUNT","RATE_DAILY","PERIOD"]
[321475168,1712214851935,-1243.69,0.00052602,120]
[321475169,1712214851959,-2166.53,0.00052602,120]
[321475170,1712214851988,-980.11,0.00052602,120]
[321475171,1712214852013,-1045.91,0.00052602,120]
[321475172,1712214852039,-509.65,0.00052602,120]
[321475173,1712214852062,-520.41,0.00052602,120]
[321475174,1712214852088,-677.85,0.00052602,120]
[321475175,1712214852114,-860.39,0.00052602,120]
[321475176,1712214852142,-779.08,0.00052602,120]
[321475177,1712214852168,-33221.63,0.00052602,90]
[321475178,1712214852194,-5480.67,0.00052602,120]
[321475179,1712214852221,-36544.94,0.00052602,120]
[321475180,1712214852245,-1352.49,0.00052602,120]
[321475181,1712214852270,-2636.75,0.00052602,120]
[321475182,1712214852295,-1164.2,0.00052602,120]
[321475183,1712214852325,-7581.89,0.00052602,120]
[321475184,1712214852352,-533.85827381,0.00052876,120]
[321475185,1712214852377,-3614.30760898,0.00052876,120]
[321475186,1712214852399,-6330.33509954,0.00052876,120]
[321475187,1712214852423,-550.82249214,0.00052876,120]
[321475188,1712214852446,-902.28370724,0.00052876,120]
[321475189,1712214852470,-535.52350411,0.00052876,120]
[321475190,1712214852493,-1254.99078665,0.00052876,120]
[321475191,1712214852518,-1432.26347157,0.00052876,120]
[321475192,1712214852542,-12797.90075599,0.00052876,120]
[321475193,1712214852565,-2828.74950241,0.00052876,120]
[321475194,1712214852592,-1243.77536937,0.00052876,120]
[321475195,1712214852615,-2166.64123967,0.00052876,120]
[321475196,1712214852638,-980.14876969,0.00052876,120]
[321475197,1712214852750,-1046.11358929,0.00052876,120]
[321475198,1712214852774,-509.75065744,0.00052876,120]
[321475199,1712214852797,-520.46122417,0.00052876,120]
[321475200,1712214852821,-677.95209094,0.00052876,120]
[321475201,1712214852848,-860.61881109,0.00052876,120]
[321475202,1712214852874,-779.16615178,0.00052876,120]
[321475203,1712214852902,-33221.8304308,0.00052876,90]
[321475204,1712214852930,-5480.77875353,0.00052876,120]
[321475205,1712214852955,-36545.05522813,0.00052876,120]
[321475206,1712214852980,-1352.53784693,0.00052876,120]
[321475207,1712214853007,-2636.78726945,0.00052876,120]
[321475208,1712214853038,-1164.31651064,0.00052876,120]
[321475209,1712214853063,-7582.10260014,0.00052876,120]
[321475210,1712214853089,-30112.00522842,0.00053,30]
[321475211,1712214853116,-325.0,0.00053,30]
[321475212,1712214853140,-1323.54061741,0.0005346,77]
[321475213,1712214853170,-665.0,0.00054,120]
[321475214,1712214853195,-960.44138989,0.00054,120]
[321475216,1712214853219,-1530.17108033,0.00054,120]
[321475217,1712214853245,-200.0,0.00054329,120]
[321475218,1712214853269,-902.0,0.00054657,30]
[321475219,1712214853293,-652.82005739,0.00054794,120]
[321475220,1712214853319,-500.0,0.00054794,120]
[321475221,1712214853344,-500.0,0.00054794,120]
[321475222,1712214853368,-500.0,0.00054794,120]
[321475223,1712214853391,-500.0,0.00054794,120]
[321475224,1712214853416,-500.0,0.00054794,120]
[321475225,1712214853439,-531.02692623,0.00054794,120]
[321475226,1712214853463,-500.0,0.00054794,120]
[321475227,1712214853487,-500.0,0.00054794,120]
[321475228,1712214853511,-500.0,0.00054794,120]
[321475229,1712214853535,-500.0,0.00054794,120]
[321475230,1712214853558,-500.0,0.00054794,120]
[321475231,1712214853582,-500.0,0.00054794,120]
[321475232,1712214853608,-500.0,0.00054794,120]
[321475233,1712214853631,-500.0,0.00054794,120]
[321475234,1712214853655,-500.0,0.00054794,120]
[321475235,1712214853677,-500.0,0.00054794,120]
[321475236,1712214853700,-500.0,0.00054794,120]
[321475237,1712214853724,-500.0,0.00054794,120]
[321475238,1712214853747,-500.0,0.00054794,120]
[321475239,1712214853771,-500.0,0.00054794,120]
[321475240,1712214853795,-500.0,0.00054794,120]
[321475241,1712214853818,-500.0,0.00054794,120]
[321475242,1712214853843,-500.0,0.00054794,120]
[321475243,1712214853867,-500.0,0.00054794,120]
[321475244,1712214853890,-500.0,0.00054794,120]
[321475245,1712214853915,-500.0,0.00054794,120]
[321475246,1712214853940,-500.0,0.00054794,120]
[321475247,1712214853963,-212.16012285,0.00054794,120]
[321475248,1712214853986,-189.4723234,0.00054794,120]
[321475249,1712214854010,-5000.0,0.00054794,120]
[321475250,1712214854034,-5000.0,0.00054794,120]
[321475251,1712214854057,-5000.0,0.00054794,120]
[321475252,1712214854080,-5000.0,0.00054794,120]
[321475253,1712214854107,-5000.0,0.00054794,120]
[321475254,1712214854135,-5000.0,0.00054794,120]
[321475255,1712214854160,-5000.0,0.00054794,120]
[321475256,1712214854184,-5000.0,0.00054794,120]
[321475257,1712214854208,-5000.0,0.00054794,120]
[321475258,1712214854231,-5000.0,0.00054794,120]
[321475259,1712214854255,-5000.0,0.00054794,120]
[321475260,1712214854279,-3803.5011451,0.00054794,120]
[321475292,1712215430221,152.62792796,0.00044986,52]
[321475372,1712215837968,-154.76711845,0.00042648,2]
[321475374,1712215837978,-1359.82473506,0.00042747,4]
[321475376,1712215837988,-923.07219606,0.00042748,4]
[321475378,1712215837998,-166.666666,0.0004338,2]
[321475380,1712215838007,-315.79883466,0.000441,2]
[321475382,1712215838018,-1204.60637555,0.00044172,2]
[321475462,1712215842487,-1499.42808065,0.00044172,2]
[321475463,1712215842497,-166.00147741,0.00044211,2]
[321475464,1712215842507,-8724.55220613,0.000444,4]
[321475465,1712215842516,-153.0,0.000444,2]
[321475466,1712215842526,-153.0,0.000444,2]
[321475467,1712215842536,-153.0,0.000444,2]
[321475468,1712215842545,-153.0,0.000444,2]
[321475469,1712215842555,-153.0,0.000444,2]
[321475470,1712215842564,-153.0,0.000444,2]
[321475471,1712215842573,-153.0,0.000444,2]
[321475472,1712215842583,-153.0,0.000444,2]
[321475473,1712215842592,-153.0,0.000444,2]
[321475474,1712215842601,-153.0,0.000444,2]
[321475475,1712215842611,-153.0,0.000444,2]
[321475476,1712215842620,-166.666666,0.00044563,2]
[321475477,1712215842630,-439.6110624,0.00044986,2]
[321475479,1712215842639,-309.01562101,0.00044998,4]
[321475481,1712215842648,-255.44422559,0.00044999,2]
[321475482,1712215842658,-1194.0428751,0.00044999,4]
[321475484,1712215842667,-204.65993878,0.00045,2]
[321475485,1712215842676,-2134.31139788,0.00045,5]
[321475486,1712215842685,-100.85984905,0.00045646,12]
[321475494,1712215842992,-370.38747593,0.00045646,12]
[321475495,1712215843002,-166.666666,0.00045746,2]
[321475496,1712215843011,-394.81578414,0.000459,30]
[321475497,1712215843022,-2799.05202741,0.000459,30]
[321475498,1712215843032,-1500.0,0.000459,2]
[321475499,1712215843040,-207.25617003,0.000459,2]
[321475500,1712215843050,-155.21898409,0.00045998,2]
[321475501,1712215843059,-866.25958568,0.00045998,120]
[321475502,1712215843068,-194.83718726,0.00045998,2]
[321475503,1712215843077,-1673.33,0.00045999,7]
[321475504,1712215843086,-1673.33,0.00045999,7]
[321475505,1712215843095,-1673.33,0.00045999,7]
[321475506,1712215843105,-1673.33,0.00045999,7]
[321475507,1712215843115,-1673.33,0.00045999,7]
[321475508,1712215843125,-1673.33,0.00045999,7]
[321475509,1712215843134,-414.8682187,0.00045999,120]
[321475510,1712215843143,-1725.64,0.00045999,7]
[321475511,1712215843152,-2702.14250659,0.00046,3]
[321475512,1712215843164,-554.42532024,0.00046,5]
[321475513,1712215843176,-5524.00218459,0.00046,5]
[321475521,1712215846229,-1242.10431662,0.00046,5]
[321475524,1712215896449,3148.0,0.00031899,120]
[321475537,1712216792891,1650.75606129,0.00029799,2]
[321475620,1712217038239,-1993.10921684,0.00034782,4]
[321475621,1712217038249,-1754.2057355,0.00034783,4]
[321475622,1712217038259,-1189.84664318,0.00034783,4]
[321475623,1712217038269,-253.07308973,0.00034784,2]
[321475624,1712217038278,-2111.30504374,0.00034784,2]
[321475625,1712217038288,-354.94544818,0.00034785,7]
[321475626,1712217038297,-1650.75606129,0.00034799,2]
[321475627,1712217038307,-595.33640361,0.00038089,2]
[321475628,1712217038316,-368.0,0.0003809,2]
[321475629,1712217038326,-4515.65682647,0.00038091,2]
[321475630,1712217038337,-4192.93398436,0.00038091,2]
[321475631,1712217038353,-7242.09814247,0.00038091,2]
[321475632,1712217038362,-167.035414,0.0004,2]
[321475633,1712217038372,-166.488849,0.0004,2]
[321475634,1712217038381,-1500.06,0.00041,2]
[321475635,1712217038391,-166.666666,0.00041096,2]
[321475636,1712217038400,-166.666666,0.00042058,2]
[321475637,1712217038410,-1503.63891298,0.00042733,4]
[321475638,1712217038419,-500.0,0.00042736,2]
[321475639,1712217038429,-13767.71295037,0.00042737,2]
[321475640,1712217038438,-500.0,0.00042791,2]
[321475641,1712217038448,-500.0,0.00042846,2]
[321475642,1712217038459,-500.0,0.000429,2]
[321475643,1712217038469,-205.13469351,0.00042919,2]
[321475644,1712217038479,-500.0,0.00042955,2]
[321475645,1712217038490,-500.0,0.0004301,2]
[321475646,1712217038499,-166.666666,0.00043019,2]
[321475647,1712217038509,-500.0,0.00043065,2]
[321475648,1712217038518,-500.0,0.0004312,2]
[321475649,1712217038532,-205.13469347,0.00043664,2]
[321475650,1712217038542,-166.666666,0.00043981,2]
[321475651,1712217038552,-205.13469347,0.0004441,2]
[321475652,1712217038562,-166.666666,0.00044942,2]
[321475653,1712217038571,-336.68996159,0.00044999,120]
[321475654,1712217038580,-10608.49805217,0.00045,2]
[321475655,1712217038590,-400.84462111,0.00045,2]
[321475656,1712217038599,-205.13469347,0.00045155,2]
[321475657,1712217038610,-202.404201,0.00045205,2]
[321475658,1712217038620,-306.0,0.00045726,2]
[321475659,1712217038629,-306.0,0.00045726,2]
[321475660,1712217038638,-205.13469347,0.000459,2]
[321475661,1712217038648,-166.666666,0.00045904,2]
[321475662,1712217038657,-1877.18254867,0.00045998,4]
[321475663,1712217038666,-156.03766105,0.00045998,4]
[321475664,1712217038676,-430.94683137,0.00045998,4]
[321475665,1712217038685,-205.41840338,0.00045998,4]
[321475666,1712217038694,-155.49331339,0.00045998,4]
[321475667,1712217038703,-156.04744363,0.00045998,4]
[321475668,1712217038713,-325.27454103,0.00045998,4]
[321475669,1712217038724,-563.83998289,0.00045998,4]
[321475670,1712217038735,-155.69643648,0.00045998,4]
[321475671,1712217038744,-161.80269182,0.00045998,4]
[321475672,1712217038754,-1113.35552523,0.00045999,30]
[321475673,1712217038763,-5144.22529396,0.00045999,4]
[321475674,1712217038774,-575.21,0.00045999,7]
[321475675,1712217038791,-575.21,0.00045999,7]
[321475676,1712217038801,-575.21,0.00045999,7]
[321475677,1712217038810,-575.21,0.00045999,7]
[321475678,1712217038820,-575.21,0.00045999,7]
[321475679,1712217038829,-575.21,0.00045999,7]
[321475680,1712217038838,-575.21,0.00045999,7]
[321475681,1712217038847,-1376.99,0.00045999,7]
[321475682,1712217038856,-1596.42193098,0.00046,3]
[321475695,1712217040336,-5411.19546341,0.00046,3]
[321475696,1712217040345,-18107.5084586,0.00046,5]
[321475738,1712217043214,-306.0,0.00046,5]
[321475739,1712217043271,-11992.66080658,0.00046,5]
[321475740,1712217043285,-5629.78392297,0.00046,5]
[321475741,1712217043329,-16503.25,0.00046,5]
[321475772,1712217232777,12847.60691014,0.0002,2]
[321475773,1712217252540,1207.75571081,0.00045023,30]
[321475774,1712217257502,437.94584523,0.00029,2]
[321475775,1712217258143,424.20353846,0.000125,2]
[321475776,1712217271044,3676.47991329,0.00045023,30]
[321475777,1712217274431,294.21301434,0.00045023,120]
[321475778,1712217277291,161.28146699,0.00045023,120]
[321475779,1712217278964,24639.48764488,0.0002877,2]
[321475780,1712217279219,-12000.0,0.0002877,2]
[321475781,1712217279320,-12000.0,0.0002877,2]
[321475782,1712217279428,-12000.0,0.0002877,2]
[321475783,1712217279542,-11404.25728198,0.0002877,2]
[321475784,1712217279817,505.55423639,0.00045019,30]
[321475785,1712217281196,485.86767013,0.00045019,60]
[321475788,1712217781508,902.0,0.00044992,30]
[321475789,1712217792181,902.0,0.00044992,30]
[321475790,1712217802745,902.0,0.00044992,30]
[321475791,1712217813378,902.0,0.00044992,30]
[321475792,1712217823949,902.0,0.00044992,30]
[321475794,1712217829983,152.43670198,0.00044992,52]
[321475795,1712217830546,152.43670198,0.00044992,52]
[321475796,1712217834523,902.0,0.00044992,30]
[321475797,1712217845360,902.0,0.00044992,30]
[321475798,1712217855987,902.0,0.00044992,30]
[321475799,1712217866771,902.0,0.00044992,30]
[321475800,1712217877592,367.0,0.00044992,30]
[321475801,1712217893810,902.0,0.00045018,30]
[321475947,1712218238418,-155.05426899,0.00038483,2]
[321475948,1712218238427,-1189.84664318,0.00038483,4]
[321475949,1712218238436,-11733.1059587,0.00038484,2]
[321475950,1712218238445,-457.029975,0.00038582,2]
[321475951,1712218238455,-154.76711845,0.00038667,2]
[321475952,1712218238465,-3275.5010913,0.00038686,2]
[321475953,1712218238475,-2339.2370835,0.00038767,2]
[321475954,1712218238486,-172.182299,0.00038795,2]
[321475955,1712218238495,-172.6030358,0.00038863,2]
[321475956,1712218238504,-187.99010129,0.00039899,2]
[321475957,1712218238514,-403.92627858,0.000399,9]
[321475958,1712218238523,-3582.31931441,0.0004,2]
[321475959,1712218238533,-4988.0,0.0004,2]
[321475960,1712218238542,-2212.7426662,0.0004,2]
[321475961,1712218238551,-866.25958568,0.00040128,120]
[321475962,1712218238560,-310.51961466,0.00040129,7]
[321475963,1712218238569,-155.21898409,0.00040129,2]
[321475964,1712218238579,-170.16348257,0.00040129,31]
[321475965,1712218238588,-156.92445236,0.00040129,31]
[321475966,1712218238597,-18624.21812833,0.0004013,2]
[321475967,1712218238610,-7691.14991791,0.0004013,2]
[321475976,1712218240411,-2273.47997473,0.0004013,2]
[321475977,1712218240422,-2682.67864976,0.0004013,2]
[321475989,1712218243509,-1970.66775449,0.0004013,2]
[321475990,1712218243521,-2348.82196683,0.0004013,2]
[321475991,1712218243530,-156.03703317,0.0004065,2]
[321475992,1712218243541,-106.19966678,0.0004065,2]
[321475993,1712218243551,-1332.2385598,0.0004075,2]
[321475994,1712218243560,-166.666666,0.00041096,2]
[321475995,1712218243569,-262.23669994,0.00041963,2]
[321475996,1712218243577,-166.666666,0.00042058,2]
[321475997,1712218243586,-349.52275288,0.00042892,2]
[321476022,1712218432959,152.43670198,0.00045018,54]
[321476023,1712219039203,152.43670197,0.0004504,54]
[321476115,1712219432553,-680.31278621,0.00038211,4]
[321476116,1712219432610,-509.53385697,0.00038211,4]
[321476117,1712219432621,-179.1106285,0.00038212,2]
[321476118,1712219432630,-400.0,0.00039425,5]
[321476119,1712219432639,-24324.2774491,0.00039426,2]
[321476120,1712219432648,-346.22252448,0.00039761,9]
[321476121,1712219432658,-316.655921,0.00039861,2]
[321476122,1712219432667,-165.347775,0.0004,2]
[321476123,1712219432677,-167.035414,0.0004,2]
[321476124,1712219432686,-511.0295386,0.00040996,2]
[321476125,1712219432695,-1772.16309678,0.00041095,4]
[321476126,1712219432704,-751.74775586,0.00041095,2]
[321476127,1712219432713,-414.8682187,0.00041095,31]
[321476128,1712219432723,-1230.703877,0.00041096,7]
[321476129,1712219432732,-166.666666,0.00041096,2]
[321476130,1712219432742,-200.0,0.00041096,7]
[321476131,1712219432751,-152.420349,0.00041096,7]
[321476132,1712219432760,-159.857176,0.00041096,7]
[321476133,1712219432770,-151.0,0.00041096,7]
[321476134,1712219432779,-151.0,0.00041096,7]
[321476135,1712219432788,-151.0,0.00041096,7]
[321476136,1712219432797,-151.0,0.00041096,7]
[321476137,1712219432807,-163.463736,0.00041096,7]
[321476138,1712219432816,-151.0,0.00041096,7]
[321476139,1712219432826,-151.0,0.00041096,7]
[321476140,1712219432836,-151.0,0.00041096,7]
[321476141,1712219432845,-151.0,0.00041096,7]
[321476142,1712219432854,-151.0,0.00041096,7]
[321476143,1712219432863,-151.0,0.00041096,7]
[321476144,1712219432873,-151.0,0.00041096,7]
[321476145,1712219432883,-151.0,0.00041096,7]
[321476146,1712219432892,-151.0,0.00041096,7]
[321476147,1712219432903,-151.0,0.00041096,7]
[321476148,1712219432912,-833.21725102,0.00041096,31]
[321476149,1712219432921,-833.21725102,0.00041096,31]
[321476150,1712219432930,-833.21725102,0.00041096,31]
[321476151,1712219432939,-833.21725102,0.00041096,31]
[321476152,1712219432948,-833.21725102,0.00041096,31]
[321476153,1712219432958,-833.21725102,0.00041096,31]
[321476154,1712219432967,-833.21725102,0.00041096,31]
[321476155,1712219432977,-833.21725102,0.00041096,31]
[321476156,1712219432986,-833.21725102,0.00041096,31]
[321476157,1712219432997,-833.21725102,0.00041096,31]
[321476158,1712219433006,-833.21725102,0.00041096,31]
[321476159,1712219433015,-833.21725102,0.00041096,31]
[321476160,1712219433025,-833.21725102,0.00041096,31]
[321476161,1712219433034,-833.21725102,0.00041096,31]
[321476162,1712219433043,-833.21725102,0.00041096,31]
[321476163,1712219433052,-833.21725102,0.00041096,31]
[321476164,1712219433061,-833.21725102,0.00041096,31]
[321476165,1712219433070,-833.21725102,0.00041096,31]
[321476166,1712219433079,-833.21725102,0.00041096,31]
[321476167,1712219433088,-833.21725102,0.00041096,31]
[321476168,1712219433097,-833.21725102,0.00041096,31]
[321476169,1712219433107,-833.21725102,0.00041096,31]
[321476170,1712219433117,-833.21725102,0.00041096,31]
[321476171,1712219433126,-833.21725102,0.00041096,31]
[321476172,1712219433135,-833.21725102,0.00041096,31]
[321476173,1712219433145,-833.21725102,0.00041096,31]
[321476174,1712219433155,-833.21725102,0.00041096,31]
[321476175,1712219433164,-833.21725102,0.00041096,31]
[321476176,1712219433174,-833.21725102,0.00041096,31]
[321476177,1712219433183,-833.21725102,0.00041096,31]
[321476178,1712219433193,-833.21725102,0.00041096,31]
[321476179,1712219433202,-833.21725102,0.00041096,31]
[321476180,1712219433211,-833.21725102,0.00041096,31]
[321476181,1712219433220,-833.21725102,0.00041096,31]
[321476182,1712219433230,-833.21725102,0.00041096,31]
[321476183,1712219433239,-833.21725102,0.00041096,31]
[321476184,1712219433249,-833.21725102,0.00041096,31]
[321476185,1712219433258,-833.21725102,0.00041096,31]
[321476186,1712219433267,-833.21725102,0.00041096,31]
[321476187,1712219433276,-151.0,0.00041096,7]
[321476188,1712219433286,-833.21725102,0.00041096,31]
[321476189,1712219433295,-833.21725102,0.00041096,31]
[321476190,1712219433305,-833.21725102,0.00041096,31]
[321476191,1712219433314,-833.21725102,0.00041096,31]
[321476192,1712219433323,-833.21725102,0.00041096,31]
[321476193,1712219433332,-833.21725102,0.00041096,31]
[321476194,1712219433342,-251.629042,0.00041096,7]
[321476195,1712219433352,-816.552906,0.00041096,31]
[321476196,1712219433361,-816.552906,0.00041096,31]
[321476197,1712219433371,-816.552906,0.00041096,31]
[321476198,1712219433380,-816.552906,0.00041096,31]
[321476199,1712219433390,-816.552906,0.00041096,31]
[321476200,1712219433399,-816.552906,0.00041096,31]
[321476201,1712219433408,-816.552906,0.00041096,31]
[321476202,1712219433418,-816.552906,0.00041096,31]
[321476203,1712219433428,-816.552906,0.00041096,31]
[321476204,1712219433438,-816.552906,0.00041096,31]
[321476205,1712219433451,-816.552906,0.00041096,31]
[321476206,1712219433460,-816.552906,0.00041096,31]
[321476207,1712219433469,-816.552906,0.00041096,31]
[321476208,1712219433479,-816.552906,0.00041096,31]
[321476209,1712219433488,-816.552906,0.00041096,31]
[321476210,1712219433498,-816.552906,0.00041096,31]
[321476211,1712219433508,-816.552906,0.00041096,31]
[321476212,1712219433516,-816.552906,0.00041096,31]
[321476213,1712219433527,-816.552906,0.00041096,31]
[321476214,1712219433536,-816.552906,0.00041096,31]
[321476215,1712219433545,-816.552906,0.00041096,31]
[321476216,1712219433553,-816.552906,0.00041096,31]
[321476217,1712219433562,-816.552906,0.00041096,31]
[321476218,1712219433571,-816.552906,0.00041096,31]
[321476219,1712219433581,-816.552906,0.00041096,31]
[321476220,1712219433591,-816.552906,0.00041096,31]
[321476221,1712219433600,-816.552906,0.00041096,31]
[321476222,1712219433609,-816.552906,0.00041096,31]
[321476223,1712219433619,-816.552906,0.00041096,31]
[321476224,1712219433628,-816.552906,0.00041096,31]
[321476225,1712219433635,-816.552906,0.00041096,31]
[321476226,1712219433642,-816.552906,0.00041096,31]
[321476227,1712219433649,-816.552906,0.00041096,31]
[321476228,1712219433657,-816.552906,0.00041096,31]
[321476229,1712219433664,-816.552906,0.00041096,31]
[321476230,1712219433672,-816.552906,0.00041096,31]
[321476231,1712219433680,-816.552906,0.00041096,31]
[321476232,1712219433687,-816.552906,0.00041096,31]
[321476233,1712219433696,-816.552906,0.00041096,31]
[321476234,1712219433703,-816.552906,0.00041096,31]
[321476235,1712219433710,-816.55290598,0.00041096,31]
[321476236,1712219433716,-816.55290598,0.00041096,31]
[321476237,1712219433723,-816.55290598,0.00041096,31]
[321476238,1712219433730,-816.55290598,0.00041096,31]
[321476239,1712219433737,-816.55290598,0.00041096,31]
[321476240,1712219433745,-312.356777,0.00041096,7]
[321476241,1712219433752,-312.356777,0.00041096,7]
[321476242,1712219433759,-312.356777,0.00041096,7]
[321476243,1712219433768,-312.356777,0.00041096,7]
[321476244,1712219433777,-500.0,0.00041096,31]
[321476245,1712219433786,-500.0,0.00041096,31]
[321476246,1712219433795,-326.38426138,0.00041096,31]
[321476247,1712219433804,-500.0,0.00041096,31]
[321476248,1712219433814,-500.0,0.00041096,31]
[321476249,1712219433823,-500.0,0.00041096,31]
[321476250,1712219433833,-500.0,0.00041096,31]
[321476251,1712219433842,-500.0,0.00041096,31]
[321476252,1712219433851,-500.0,0.00041096,31]
[321476253,1712219433861,-166.666666,0.00042058,2]
[321476254,1712219433870,-511.02953857,0.00042222,2]
[321476255,1712219433879,-923.37113639,0.0004294,2]
[321476256,1712219433888,-404.0,0.00043,90]
[321476257,1712219433897,-404.0,0.00043014,90]
[321476258,1712219433907,-166.666666,0.00043019,2]
[321476259,1712219433916,-1792.57767047,0.00043175,2]
[321476260,1712219433926,-511.02953857,0.00043448,2]
[321476261,1712219433935,-166.666666,0.00043981,2]
[321476262,1712219433945,-500.0,0.000445,2]
[321476263,1712219433954,-902.0,0.0004463,30]
[321476264,1712219433963,-151.0,0.00044674,7]
[321476265,1712219433972,-151.0,0.00044674,7]
[321476266,1712219433982,-511.02953857,0.00044674,2]
[321476267,1712219433991,-151.0,0.00044674,7]
[321476268,1712219434001,-1500.0,0.000447,2]
[321476269,1712219434011,-172.984578,0.000447,7]
[321476270,1712219434020,-151.0,0.000447,7]
[321476271,1712219434029,-151.0,0.000447,7]
[321476272,1712219434038,-312.356777,0.000447,7]
[321476273,1712219434047,-312.356777,0.000447,7]
[321476274,1712219434057,-500.0,0.000448,2]
[321476275,1712219434066,-404.0,0.00044877,90]
[321476276,1712219434076,-166.666666,0.00044942,2]
[321476277,1712219434085,-500.0,0.00045,2]
[321476278,1712219434094,-244.454736,0.00045,7]
[321476279,1712219434104,-650.0,0.0004504,4]
[321476280,1712219434113,-1275.12120204,0.000455,30]
[321476281,1712219434122,-500.0,0.000455,2]
[321476282,1712219434131,-236.5114,0.00045768,2]
[321476283,1712219434221,-2799.05202741,0.000459,30]
[321476284,1712219434230,-511.02953857,0.000459,2]
[321476285,1712219434240,-166.666666,0.00045904,2]
[321476286,1712219434250,-377.56075127,0.00045997,4]
[321476306,1712219439029,-31.46092267,0.00045997,4]
[321476307,1712219439038,-1622.19004332,0.00045997,4]
[321476308,1712219439048,-977.30368057,0.00045998,4]
[321476309,1712219439058,-863.27912556,0.00045998,2]
[321476310,1712219439068,-195.0276975,0.00045998,2]
[321476311,1712219439077,-3730.1762433,0.00045998,4]
[321476312,1712219439086,-222.302969,0.00045998,7]
[321476313,1712219439095,-151.0,0.00045998,7]
[321476314,1712219439105,-255.602588,0.00045998,7]
[321476315,1712219439115,-312.356777,0.00045998,7]
[321476316,1712219439123,-216.4130817,0.00045998,7]
[321476317,1712219439135,-95.9436953,0.00045998,7]
[321476318,1712219439144,-390.48981587,0.00045999,2]
[321476319,1712219439152,-460.69413678,0.00045999,7]
[321476320,1712219439162,-356.38783279,0.00045999,2]
[321476321,1712219439173,-322.64989374,0.00045999,2]
[321476322,1712219439183,-503.72910316,0.00045999,4]
[321476323,1712219439192,-2278.81,0.00045999,7]
[321476324,1712219439200,-917.20845664,0.00045999,7]
[321476325,1712219439211,-1002.82772861,0.00045999,7]
[321476328,1712219441467,-500.0,0.00041096,31]
[321476329,1712219441476,-500.0,0.00041096,31]
[321476330,1712219441486,-500.0,0.00041096,31]
[321476331,1712219441495,-173.86123251,0.00041096,31]
[321476332,1712219441506,-500.0,0.00041096,31]
[321476333,1712219441515,-500.0,0.00041096,31]
[321476334,1712219441526,-500.0,0.00041096,31]
[321476335,1712219441535,-500.0,0.00041096,31]
[321476336,1712219441544,-500.0,0.00041096,31]
[321476337,1712219441553,-500.0,0.00041096,31]
[321476338,1712219441562,-500.0,0.00041096,31]
[321476339,1712219441571,-500.0,0.00041096,31]
[321476340,1712219441581,-500.0,0.00041096,31]
[321476341,1712219441591,-500.0,0.00041096,31]
[321476342,1712219441599,-500.0,0.00041096,31]
[321476343,1712219441609,-500.0,0.00041096,31]
[321476344,1712219441619,-500.0,0.00041096,31]
[321476345,1712219441628,-358.77381475,0.00045999,7]
[321476346,1712219441638,-151.0,0.00045999,7]
[321476347,1712219441647,-312.356777,0.00045999,7]
[321476348,1712219441656,-312.356777,0.00045999,7]
[321476349,1712219441665,-5445.56225937,0.00046,5]
[321476350,1712219441674,-37510.76953487,0.00046,5]
[321476370,1712219443656,-11598.75011996,0.00046,5]
[321476371,1712219443668,-10005.9771402,0.00046,5]
[321476372,1712219443680,-14704.90571389,0.00046,5]
[321476385,1712219446631,-167035.77248148,0.00046,5]
[321476386,1712219446641,-1431.0,0.00046,2]
[321476387,1712219446650,-4348.38535278,0.00046,7]
[321476388,1712219446660,-55400.7198311,0.00046,2]
[321476389,1712219446670,-385.89252612,0.00046,2]
[321476390,1712219446679,-5233.55089465,0.00046,4]
[321476391,1712219446689,-500.0,0.00046,2]
[321476392,1712219446698,-151.0,0.00046,7]